Cogmind - Beta 9.4 @@@ ROGUE MODE // 2020.03.14 @ 16:57:57 Player: Isabelle Result: Destroyed by Y-45 Defender with Beam Rifle Performance ------------- Evolutions (1) 500 Regions Visited (3) 600 Robots Destroyed (27) 135 Value Destroyed (667) 667 Prototype IDs (3) 60 Alien Tech Used (0) 0 Bonus (0) 0 TOTAL SCORE: 1962 Bonus ------- None Cogmind --------- Core Integrity 0/400 Matter 68/300 Energy 60/100 System Corruption 0% Temperature Cool (9) Movement Hovering (80) Location -9/Storage Parts ------- > --- POWER (2) -------- (None) > --- PROPULSION (3) --- Backup Propulsion I > --- UTILITY (2) ------ Visual Processing Unit > --- WEAPON (2) ------- Backup Laser I Backup Laser I > --- INVENTORY (4) ---- Backup Power I Aluminum Leg Hardlight Generator Datajack Peak State ------------ > --- POWER ------------ Ion Engine Light Ion Engine > --- PROPULSION ------- Aluminum Leg Improved Flight Unit Improved Flight Unit > --- UTILITY ---------- Heat Sink Visual Processing Unit > --- WEAPON ----------- High-powered Shotgun Mini Grenade Launcher > --- INVENTORY -------- Light Treads Aluminum Leg Compact Wheel Hardlight Generator [Rating: 17] Favorites ----------- Power Light Ion Engine Engine Light Ion Engine Propulsion Aluminum Leg Treads Light Treads Leg Aluminum Leg Hover Unit Backup Propulsion I Flight Unit Improved Flight Unit Utility Visual Processing Unit Device Improved Terrain Scanner Processor Visual Processing Unit Protection Medium Armor Plating Weapon Medium Laser Energy Gun Medium Laser Ballistic Gun Assault Rifle Launcher Mini Grenade Launcher Special Melee Weapon Datajack Build | -11 -10 -9 -9 ------- Run | Scr Mat Mat Sto Slots Evolved 2 | . . 2 . Power 1 | . . 1 . Propulsion 1 | . . 1 . Utility . | . . . . Weapon . | . . . . Parts Attached 52 | 5 16 24 7 Power 9 | 1 2 5 1 Engine 9 | 1 2 5 1 Core . | . . . . Reactor . | . . . . Propulsion 14 | 2 4 7 1 Treads 1 | . . . 1 Leg 9 | 2 2 5 . Wheel . | . . . . Hover . | . . . . Flight 4 | . 2 2 . Utility 6 | . 3 2 1 Device 4 | . 1 2 1 Storage . | . . . . Processor 1 | . 1 . . Hackware . | . . . . Protection 1 | . 1 . . Artifact . | . . . . Weapon 23 | 2 7 10 4 Energy Gun 11 | 1 5 5 . Energy Cannon . | . . . . Ballistic Gun 6 | 1 1 1 3 Ballistic Cannon . | . . . . Launcher 4 | . 1 3 . Special Weapon . | . . . . Impact Weapon . | . . . . Slashing Weapon . | . . . . Piercing Weapon . | . . . . Special Melee Weapon 2 | . . 1 1 Unidentified Prototypes 1 | . . 1 . Parts Lost 24 | . 8 7 9 Power 5 | . 1 1 3 Propulsion 7 | . 2 2 3 Utility 3 | . 1 1 1 Weapon 9 | . 4 3 2 Highest Loss Streak 7 | . 7 5 5 Average Slot Usage (%) 76 | . 83 79 52 Engine 13 | . 13 15 8 Leg 16 | . 20 18 . Flight 5 | . 4 4 6 Device 6 | . 10 4 2 Processor 10 | . 8 11 11 Protection 2 | . . 3 . Energy Gun 10 | . 14 9 2 Ballistic Gun 4 | . 9 1 4 Launcher 5 | . . 9 5 Naked Turns . | . . . . Heaviest Build 20 | 7 14 20 11 Greatest Support 20 | 20 20 20 20 Greatest Overweight (x) 4 | . 1 4 . Average Overweight (x) . | . . . . Largest Inventory Capacity 4 | 4 4 4 4 Average Capacity 4 | 4 4 4 4 Most Carried 4 | 1 4 4 4 Average Carried 2 | . 1 3 3 Final Capacity 4 | 4 4 4 4 Final Carried 4 | 1 4 4 4 Class Distribution -------------------- 70% | Mutant 29% | Scavenger-Mutant Dominant Class ---------------- Mutant | -10/Materials Mutant | -9/Materials Mutant | -9/Storage Resources | -11 -10 -9 -9 ----------- Run | Scr Mat Mat Sto Matter Collected 638 | 226 111 266 35 Remotely . | . . . . Salvage Created 628 | 57 191 345 35 Parts 63 | 4 14 38 7 Haulers Intercepted 1 | . . 1 . Recyclers Shooed . | . . . . Parts Field Recycled . | . . . . Retrieved Matter . | . . . . Parts Self-Destructed . | . . . . Prevented . | . . . . Kills | -11 -10 -9 -9 ------- Run | Scr Mat Mat Sto Combat Hostiles Destroyed 21 | 1 6 11 3 Guns 14 | 1 6 4 3 AOE 7 | . . 7 . Classes Destroyed 7 | 2 2 3 . Tunneler 1 | 1 . . . Hauler 1 | . . 1 . Operator 1 | . . 1 . Watcher 3 | . 1 2 . Swarmer 9 | . 3 3 3 Grunt 9 | 1 3 5 . Sentry 3 | . . 3 . Best Kill Streak 5 | 2 4 5 3 Combat Bots Only 3 | 1 3 3 3 Max Kills in Single Turn 3 | 1 2 3 1 Gunslinging 1 | . 1 . . Exploded 3 | . . 3 . Melee . | . . . . Uniques/NPCs Destroyed . | . . . . Combat | -11 -10 -9 -9 -------- Run | Scr Mat Mat Sto Damage Taken 2231 | 83 556 815 777 Core 590 | . 184 123 283 Absorbed by Shields 42 | . . . 42 Core Remaining (%) 63 | 100 26 . . Volleys Fired 94 | 6 40 42 6 Largest 2 | 2 2 2 2 Hottest 100 | 70 70 100 60 Shots Fired 146 | 12 56 66 12 Gun 132 | 12 56 52 12 Cannon . | . . . . Launcher 14 | . . 14 . Special . | . . . . Kinetic 49 | 6 28 15 . Thermal 65 | 6 28 19 12 Explosive 14 | . . 14 . Electromagnetic 18 | . . 18 . Robot Hit Streak 7 | 3 7 6 2 Robot Miss Streak 4 | 2 2 4 2 Penetration Max . | . . . . Secondary Targets 1 | . 1 . . Max Gunslinging Chain 1 | . 1 . . Shots Hit Robots 90 | 7 38 39 6 Core Hits 45 | 3 11 25 6 Critical Hits . | . . . . Critical Kills . | . . . . Critical Parts Destroyed . | . . . . Melee Attacks . | . . . . Impact . | . . . . Slashing . | . . . . Piercing . | . . . . Sneak Attacks . | . . . . Combat Hostiles . | . . . . Follow-up Attacks . | . . . . Damage Inflicted 1878 | 101 464 1244 69 Guns 1111 | 101 464 481 65 Cannons . | . . . . Explosions 763 | . . 763 . Melee . | . . . . Ramming 4 | . . . 4 Kinetic 421 | 25 219 177 . Thermal 499 | 76 245 113 65 Explosive 763 | . . 763 . Electromagnetic 191 | . . 191 . Impact . | . . . . Slashing . | . . . . Piercing . | . . . . Highest Corruption . | . . . . Average Corruption . | . . . . Corruption Purged . | . . . . Overload Shots . | . . . . Overflow Damage 35 | . . 35 . Projectiles . | . . . . Explosions 35 | . . 35 . Melee . | . . . . Knockbacks . | . . . . Impact . | . . . . Kinetic . | . . . . Secondary . | . . . . Self-Inflicted Damage 171 | . . 169 2 Shots 7 | . . 7 . Rammed 1 | . . . 1 Targets Rammed 1 | . . . 1 Kicked . | . . . . Crushed . | . . . . Highest Temperature 293 | 72 208 293 2 Average Temperature 82 | 32 86 90 2 Received Heat Transfer 579 | 48 279 201 51 Siege Activations . | . . . . Robots Corrupted . | . . . . Combat Hostiles . | . . . . Parts Fried . | . . . . Impact Corruptions . | . . . . Robots Melted . | . . . . Combat Hostiles . | . . . . Parts Melted 3 | 2 . 1 . Heat Transferred 1506 | 222 692 333 259 Parts Sabotaged . | . . . . Parts Stolen . | . . . . Parts Stripped . | . . . . Power Chain Reactions . | . . . . Missiles Intercepted . | . . . . Alert | -11 -10 -9 -9 ------- Run | Scr Mat Mat Sto Peak Influence 253 | 25 133 253 147 Average Influence 109 | 2 88 145 98 Maximum Alert Level 1 | . . 1 . Low Security (%) 85 | 100 100 68 100 Level 1 14 | . . 31 . Level 2 . | . . . . Level 3 . | . . . . Level 4 . | . . . . Level 5 . | . . . . High Security . | . . . . Max Security . | . . . . Squads Dispatched 6 | . . 4 2 Investigation 2 | . . 2 . Extermination . | . . . . Reinforcement 4 | . . 2 2 Assault . | . . . . Garrison . | . . . . Intercept . | . . . . Construction Impeded . | . . . . Haulers Reinforced . | . . . . Stealth | -11 -10 -9 -9 --------- Run | Scr Mat Mat Sto Distress Signals 2 | . . 1 1 Communications Jammed . | . . . . Distress Signals . | . . . . Times Spotted 45 | 1 8 25 11 Peak Tracking Total 7 | 1 4 6 7 Tactical Retreats 4 | . . 2 2 Traps | -11 -10 -9 -9 ------- Run | Scr Mat Mat Sto Traps Triggered . | . . . . Indirectly . | . . . . Trap Hack Attempts . | . . . . Triggered . | . . . . Disarmed . | . . . . Reprogrammed . | . . . . Reused . | . . . . Traps Extracted . | . . . . Installed . | . . . . Triggered . | . . . . Machines | -11 -10 -9 -9 ---------- Run | Scr Mat Mat Sto Machines Disabled 5 | . . 5 . Max in Single Turn 1 | . . 1 . Machines Sabotaged . | . . . . Garrisons Compromised . | . . . . Overloaded Fab Kills . | . . . . Fab Network Shutdowns . | . . . . Hacking | -11 -10 -9 -9 --------- Run | Scr Mat Mat Sto Machines Accessed 3 | . . 2 1 Terminals 1 | . . 1 . Fabricators . | . . . . Repair Stations 1 | . . . 1 Recycling Units . | . . . . Scanalyzers 1 | . . 1 . Garrison Access . | . . . . Total Hacks 11 | . . 10 1 Successful 9 | . . 8 1 Failed 2 | . . 2 . Catastrophic . | . . . . Database Lockouts . | . . . . Manual . | . . . . Terminals 4 | . . 4 . Fabricators . | . . . . Repair Stations 1 | . . . 1 Recycling Units . | . . . . Scanalyzers 6 | . . 6 . Garrison Access . | . . . . Terminal Hacks 2 | . . 2 . Prototype ID Bank 1 | . . 1 . Alert Level 1 | . . 1 . Fabricator Hacks . | . . . . Repair Station Hacks 1 | . . . 1 Refit 1 | . . . 1 Recycling Unit Hacks . | . . . . Scanalyzer 6 | . . 6 . Insert Component 3 | . . 3 . Analyze 3 | . . 3 . Garrison Access Hacks . | . . . . Unauthorized Hacks . | . . . . Terminals . | . . . . Fabricators . | . . . . Repair Stations . | . . . . Recycling Units . | . . . . Scanalyzers . | . . . . Garrison Access . | . . . . Data Cores Recovered . | . . . . Used . | . . . . Hacking Detections 3 | . . 2 1 Full Trace Events 2 | . . 2 . Feedback Events . | . . . . Feedback Blocked . | . . . . Robot Schematics Acquired . | . . . . Robots Built . | . . . . Matter . | . . . . Time . | . . . . Total Robot Build Rating . | . . . . Part Schematics Acquired 3 | . . 3 . Parts Built . | . . . . Matter . | . . . . Time . | . . . . Total Part Build Rating . | . . . . Parts Repaired . | . . . . Time . | . . . . Parts Recycled . | . . . . Recycled Matter . | . . . . Retrieved Matter . | . . . . Retrieved Components . | . . . . Parts Scanalyzed 3 | . . 3 . Part Schematics Acquired 3 | . . 3 . Parts Damaged 1 | . . 1 . Bothacking | -11 -10 -9 -9 ------------ Run | Scr Mat Mat Sto Used RIF Installer . | . . . . Robots Hacked . | . . . . Non-combat . | . . . . Combat . | . . . . Robot Hacks Applied . | . . . . Relay Couplers Released . | . . . . Robots Rewired . | . . . . Allies Hacked . | . . . . Hacks Repelled . | . . . . Allies | -11 -10 -9 -9 -------- Run | Scr Mat Mat Sto Total Allies . | . . . . Largest Group . | . . . . Highest-Rated Group . | . . . . Highest-Rated Ally . | . . . . Total Orders . | . . . . Ally Attacks . | . . . . Total Damage . | . . . . Kills . | . . . . Allies Corrupted . | . . . . Allies Melted . | . . . . Intel | -11 -10 -9 -9 ------- Run | Scr Mat Mat Sto Robot Analysis Total . | . . . . Derelict Logs Recovered . | . . . . Drone Launches . | . . . . Drone Recoveries . | . . . . Exploration | -11 -10 -9 -9 ------------- Run | Scr Mat Mat Sto Turns Passed 1207 | 97 386 562 162 Spaces Moved 793 | 73 210 392 118 Core 78 | 24 5 1 48 Treads 59 | . . . 59 Legs 486 | 49 169 268 . Wheels . | . . . . Hover 11 | . . . 11 Flight 159 | . 36 123 . Fastest Speed 37 | 50 37 42 50 Average Speed 100 | 96 104 96 107 Slowest Speed 250 | 120 120 250 160 Overloaded Moves . | . . . . Propulsion Burnouts . | . . . . Robots Hopped . | . . . . Cave-ins Triggered . | . . . . Exploration Rate (%) 19 | 9 23 22 23 Regions Visited 3 Branch Regions 1 Pre-discovered Areas . | . . . . Known Exits Taken . | . . . . Unknown Exits Taken 3 | 1 1 1 . Scrap Searched . | . . . . Spaces Dug . | . . . . Terrain Destroyed 115 | . . 115 . Melee . | . . . . Projectile . | . . . . AOE 115 | . . 115 . Actions | -11 -10 -9 -9 --------- Run | Scr Mat Mat Sto Total 1053 | 84 322 507 140 Wait 68 | . 36 27 5 Move 790 | 72 209 391 118 Hop . | . . . . Pick Up 21 | 1 15 5 . Fast Attach 25 | 5 3 15 2 Attach 10 | . 8 1 1 Detach 4 | . . 3 1 Swap 17 | . 5 8 4 Drop 23 | . 6 15 2 Fire 94 | 6 40 42 6 Melee . | . . . . Ram 1 | . . . 1 Kick . | . . . . Crush . | . . . . Escape Stasis . | . . . . Rewire . | . . . . Trap . | . . . . Miscellaneous . | . . . . Route ------- -11/Scrapyard -10/Materials (discovered 2 exits: *Mat / [Min]) -9/Materials -9/Storage History --------- Turn | Location | Event 2 | -11/Scrapyard | Met Revision 17 68 | -11/Scrapyard | Discovered new exit (range 8) 98 | -11/Scrapyard | Entered Materials 133 | -10/Materials | Discovered new exit (range 13) 358 | -10/Materials | Core integrity fell below 50% 406 | -10/Materials | Lost 7 parts (1p2n1u3w) 460 | -10/Materials | Discovered new exit (range 8) 484 | -10/Materials | Entered another Materials area 484 | -9/Materials | Evolved 2 slots: Power x1, Propulsion x1 710 | -9/Materials | Build established: Mutant 814 | -9/Materials | Lost 5 parts (1p1n1u2w) 1027 | -9/Materials | Discovered new exit (range 5) 1046 | -9/Materials | Entered Storage 1143 | -9/Storage | Core integrity fell below 50% 1155 | -9/Storage | Core integrity fell below 20% 1184 | -9/Storage | Lost 5 parts (1p2n2w) 1208 | -9/Storage | Destroyed by Y-45 Defender with Beam Rifle Last Messages --------------- K-01 Serf collects debris. R-06 Scavenger collects Flight Unit. Acquired 10 matter. K-01 Serf collects debris. R-06 Scavenger collects Flight Unit. Acquired 13 matter. Acquired 12 matter. K-01 Serf collects debris. R-06 Scavenger collects Lgt. Assault Rifle. K-01 Serf collects debris. Compression Vault explodes. R-06 Scavenger destroyed. Shield Generator destroyed. Backup Propulsion I destroyed. Backup Power I destroyed. The unstable cave ceiling collapses. K-01 Serf collects debris. Lgt. Ion Engine destroyed. M-13 Machinist fits Backup Power I on K-01 Serf. [Achievement: First Step to Greatness] Map ----- +----------------------------------------------------+ | | | | | | | | | | | | | | | | | | | | | | | | | ?????????????????????????????????????????????????? | | ?????????????????????????????????????????????????? | | ?????????????????????????????????????????????????? | | ?????????????????????????????????????????????????? | | ?????????????????????????????????????????????????? | | ?????????????????????????????????????????????????? | | ?????????????????????#####???????????????????????? | | ?????????????????????#"""#???????????????????????? | | ?????????????????????#"R"#???????????????????????? | | ????????????????????##" "###?????????????????????? | | ???????????????????## #?????????????????????? | | ??????????????????## ##????????????????????? | | ??????????????????# [k #????????????????????? | | ??????????????????## [@ #????????????????????? | | ??????????????????# =% m #????????????????????? | | ??????????????????## * #????????????????????? | | ??????????????###### Y r## #??????????????????? | | ????????# +??????????????????? | | ??????????????######### # ### #??????????????????? | | ??????????????# ###??????????????????????? | | ??????????????# """"" a#????????????????????????? | | ??????????????# "???" #????????????????????????? | | ??????????????# ""??" #????????????????????????? | | ??????????????# "??"" #????????????????????????? | | ??????????????# "???" #????????????????????????? | | ??????????????# """"" #????????????????????????? | | ??????????????# #????????????????????????? | | ##????????????#####/######???????????????????????? | | ????????????# #???????????????????????? | | ????????????+ #???????????????????????? | | #????????????# #???????????????????????? | | #????????????#+##########???????????????????????? | | #????????????# ! #????????????????????????? | | #????????????# !! #????????????????????????? | | #????????????# !! #????????????????????????? | | +????????????# #????????????????????????? | | #????????????# #????????????????????????? | | #????????????# #????????????????????????? | +----------------------------------------------------+ Best States ------------- Heat Dissipation 38 Energy Generation 17 Energy Capacity 415 Matter Stores 276 Matter Capacity 300 Sight Range 18 Terrain Scan Range 16 Terrain Scan Density 10 Armor Coverage 225 Evasion (%) 62 Recoil Reduction 1 Item Schematics ----------------- Com. Wheel | -9/Materials | Scanalyzed Hardlight Generator | -9/Materials | Scanalyzed Aluminum Leg | -9/Materials | Scanalyzed Robot Schematics ------------------ None Fabricated ------------ Nothing Alien Tech Used ----------------- None Achievements -------------- First Step to Greatness Loot Pinata Oops Risk Taker Challenges ------------ None Game ------ Seed MatterSiegeCutter Manual? 0 Play Time 00:43:06 Cumulative 2.4 hours Start 2020.03.14 @ 16:12:28 End 2020.03.14 @ 16:57:57 Sessions 1 Manual Loads 0 Difficulty Rogue Special Mode None Game No. 2 Rogue 2 Adventurer 0 Explorer 0 Win Type - Total 0 Types 0/0/0/0/0/0/0 Lore% 0 Gallery% 4 Achievement% 3 Wizard Run 0 Options --------- ASCII 0 Keyboard 1 Movement Vi Keybinds 0 Fullscreen 0 Font 20/SmallcapsGlow Map View 113x50 Tactical HUD 0 Map Filters NONE Filters NONE Steam 1 RUN: 8916b847-4dad-499a-a76c-487e0d4703de